Cogmind - Beta 13 *** ADVENTURER MODE // 2024.03.19 @ 23:28:05 Player: skye Result: Destroyed by G-34 Mercenary with Small Laser Performance ------------- Evolutions (1) 500 Regions Visited (3) 600 Robots Destroyed (46) 230 Value Destroyed (1391) 1391 Prototype IDs (1) 20 Alien Tech Used (0) 0 Bonus (0) 0 TOTAL SCORE: 2741 Bonus ------- None Cogmind --------- Core Integrity 0/400 Matter 269/300 Energy 52/100 System Corruption 0% Temperature Cool (30) Movement Walking (190) Ox1 Location -9/Storage Parts ------- > --- POWER (1) -------- (None) > --- PROPULSION (3) --- Aluminum Leg > --- UTILITY (3) ------ Heat Sink Medium Storage Unit > --- WEAPON (2) ------- Advanced Beam Cannon > --- INVENTORY (10) --- Light Deuterium Engine Core Shielding Assault Rifle Heavy Assault Rifle Grenade Launcher Datajack Peak State ------------ > --- POWER ------------ Light Deuterium Engine > --- PROPULSION ------- Aluminum Leg Aluminum Leg Aluminum Leg > --- UTILITY ---------- Heat Sink Medium Storage Unit Medium Armor Plating > --- WEAPON ----------- Advanced Beam Cannon Heavy Assault Rifle > --- INVENTORY -------- Light Deuterium Engine Light Deuterium Engine Aluminum Leg Heat Sink Core Shielding Spread Laser Assault Rifle Heavy Assault Rifle Grenade Launcher Datajack [Rating: 16] Favorites ----------- Power Improved Ion Engine Engine Improved Ion Engine Propulsion Aluminum Leg Leg Aluminum Leg Utility Medium Storage Unit Device Heat Sink Storage Medium Storage Unit Protection Medium Armor Plating Weapon Heavy Assault Rifle Energy Gun Medium Laser Energy Cannon Advanced Beam Cannon Ballistic Gun Heavy Assault Rifle Build | -11 -10 -9 -9 ------- Run | Yrd Mat Mat Sto Slots Evolved 2 | . . 2 . Power . | . . . . Propulsion 1 | . . 1 . Utility 1 | . . 1 . Weapon . | . . . . Parts Attached 43 | 6 6 23 8 Power 8 | 1 2 4 1 Engine 8 | 1 2 4 1 Core . | . . . . Reactor . | . . . . Propulsion 15 | 2 1 9 3 Treads . | . . . . Leg 15 | 2 1 9 3 Wheel . | . . . . Hover . | . . . . Flight . | . . . . Utility 11 | 1 3 4 3 Device 4 | . 1 1 2 Storage 2 | 1 1 . . Processor . | . . . . Hackware . | . . . . Protection 5 | . 1 3 1 Artifact . | . . . . Weapon 9 | 2 . 6 1 Energy Gun 3 | 1 . 2 . Energy Cannon 2 | . . 1 1 Ballistic Gun 4 | 1 . 3 . Ballistic Cannon . | . . . . Launcher . | . . . . Special Weapon . | . . . . Impact Weapon . | . . . . Slashing Weapon . | . . . . Piercing Weapon . | . . . . Special Melee Weapon . | . . . . Unidentified Prototypes 1 | . . 1 . Parts Lost 10 | . 1 1 8 Power 3 | . 1 . 2 Propulsion 3 | . . 1 2 Utility 2 | . . . 2 Weapon 2 | . . . 2 Highest Loss Streak 8 | . 1 1 8 To Critical Strikes . | . . . . Average Slot Usage (%) 96 | . 91 97 93 Engine 11 | . 14 10 10 Leg 31 | . 28 31 31 Device 10 | . 1 12 10 Storage 11 | . 14 11 11 Protection 8 | . 5 8 8 Energy Gun 11 | . 14 10 9 Ballistic Gun 11 | . 14 11 10 Naked Turns . | . . . . Heaviest Build 30 | 12 18 30 29 Greatest Support 33 | 20 20 33 30 Greatest Overweight (x) 1 | . . 1 1 Average Overweight (x) . | . . . . Largest Inventory Capacity 10 | 8 10 10 10 Average Capacity 9 | 6 9 10 10 Most Carried 10 | 2 9 10 10 Average Carried 8 | . 5 9 9 Final Capacity 10 | 8 10 10 10 Final Carried 10 | 1 9 10 6 Class Distribution -------------------- 55% | Scavenger-Mutant 44% | Mutant Dominant Class ---------------- Mutant | -10/Materials Scavenger-Mutant | -9/Materials Scavenger-Mutant | -9/Storage Resources | -11 -10 -9 -9 ----------- Run | Yrd Mat Mat Sto Matter Collected 825 | 71 18 585 151 Remotely . | . . . . Salvage Created 1537 | . 46 896 595 Parts 115 | . 4 65 46 Haulers Intercepted . | . . . . Recyclers Shooed . | . . . . Parts Field Recycled . | . . . . Retrieved Matter . | . . . . Parts Self-Destructed . | . . . . Prevented . | . . . . Kills | -11 -10 -9 -9 ------- Run | Yrd Mat Mat Sto Combat Hostiles Destroyed 42 | . 3 24 15 Guns 39 | . 3 24 12 Cannons 3 | . . . 3 Classes Destroyed 7 | . 1 4 2 Worker 3 | . . 2 1 Tunneler 1 | . . 1 . Swarmer 9 | . 3 6 . Grunt 19 | . . 11 8 Brawler 1 | . . . 1 Duelist 2 | . . . 2 Sentry 11 | . . 7 4 Best Kill Streak 6 | . 3 5 6 Combat Bots Only 5 | . 3 4 5 Max Kills in Single Turn 2 | . 1 2 2 Gunslinging . | . . . . Exploded . | . . . . Melee . | . . . . Uniques/NPCs Destroyed . | . . . . Combat | -11 -10 -9 -9 -------- Run | Yrd Mat Mat Sto Hostile Shots Fired 292 | . 32 140 120 Missed 89 | . 3 49 37 Damage Taken 2186 | . 365 797 1024 Core 489 | . 82 135 272 Absorbed by Shields . | . . . . Redirected to Shielding 1 | . 1 . . Ignored by Resistances 649 | . 107 241 301 Regen/Repaired (Parts) 141 | . . 141 . Core Remaining (%) 83 | 100 67 . . Volleys Fired 123 | . 10 73 40 Largest 2 | . 2 2 2 Hottest 91 | . 70 88 91 Shots Fired 223 | . 20 132 71 Gun 212 | . 20 132 60 Cannon 11 | . . . 11 Launcher . | . . . . Special . | . . . . Kinetic 115 | . 10 73 32 Thermal 108 | . 10 59 39 Explosive . | . . . . Electromagnetic . | . . . . Robot Hit Streak 44 | . 5 21 44 Robot Miss Streak 5 | . 5 3 4 Penetration Max . | . . . . Secondary Targets 8 | . 1 3 4 Max Gunslinging Chain 1 | . 1 1 1 Shots Hit Robots 171 | . 10 96 65 Core Hits 105 | . 3 48 54 Critical Kills 2 | . . 1 1 Critical Parts Destroyed 1 | . . 1 . Critical Strikes 4 | . . 3 1 Burn 1 | . . 1 . Destroy 3 | . . 2 1 Melee Attacks . | . . . . Impact . | . . . . Slashing . | . . . . Piercing . | . . . . Sneak Attacks . | . . . . Combat Hostiles . | . . . . Follow-up Attacks . | . . . . Damage Inflicted 2394 | . 141 1229 1024 Guns 2165 | . 141 1226 798 Cannons 226 | . . . 226 Explosions . | . . . . Melee . | . . . . Ramming 3 | . . 3 . Kinetic 1087 | . 78 656 353 Thermal 1304 | . 63 570 671 Explosive . | . . . . Electromagnetic . | . . . . Impact . | . . . . Slashing . | . . . . Piercing . | . . . . Highest Corruption . | . . . . Average Corruption . | . . . . Corruption Purged . | . . . . Corruption Blocked . | . . . . Overload Shots . | . . . . Overflow Damage . | . . . . Projectiles . | . . . . Explosions . | . . . . Melee . | . . . . Knockbacks . | . . . . Impact . | . . . . Kinetic . | . . . . Secondary . | . . . . Self-Inflicted Damage . | . . . . Shots . | . . . . Rammed . | . . . . Targets Rammed 1 | . . 1 . Kicked 1 | . . 1 . Crushed . | . . . . Highest Temperature 70 | . 70 36 54 Average Temperature 18 | . 33 10 18 Received Heat Transfer 693 | . . 318 375 Siege Activations . | . . . . Robots Corrupted . | . . . . Combat Hostiles . | . . . . Parts Fried . | . . . . Impact Corruptions . | . . . . Robots Melted . | . . . . Combat Hostiles . | . . . . Parts Melted 3 | . . 2 1 Heat Transferred 2581 | . 185 1429 967 Parts Sabotaged . | . . . . Parts Stolen . | . . . . Parts Stripped . | . . . . Power Chain Reactions . | . . . . Alert | -11 -10 -9 -9 ------- Run | Yrd Mat Mat Sto Peak Influence 381 | . 85 258 381 Initial 46 | . . 27 46 Average 84 | . 41 80 191 Maximum Alert Level 1 | . . 1 1 Low Security (%) 85 | 100 100 87 55 Level 1 14 | . . 12 44 Level 2 . | . . . . Level 3 . | . . . . Level 4 . | . . . . Level 5 . | . . . . High Security . | . . . . Max Security . | . . . . Squads Dispatched 9 | . 1 6 2 Investigation 4 | . 1 3 . Extermination . | . . . . Reinforcement 3 | . . 3 . Assault . | . . . . Garrison 2 | . . . 2 Intercept . | . . . . Searches Triggered . | . . . . Construction Impeded . | . . . . Haulers Reinforced . | . . . . Active Scanning Responses . | . . . . Cargo Convoy Interrupts . | . . . . Stealth | -11 -10 -9 -9 --------- Run | Yrd Mat Mat Sto Distress Signals 3 | . . 2 1 Communications Jammed . | . . . . Distress Signals . | . . . . Times Spotted 65 | . 4 41 20 Peak Tracking Total 7 | . 3 7 6 Tactical Retreats 1 | . . . 1 Traps | -11 -10 -9 -9 ------- Run | Yrd Mat Mat Sto Traps Triggered 2 | . 1 1 . Indirectly . | . . . . Trap Hack Attempts . | . . . . Triggered . | . . . . Disarmed . | . . . . Reprogrammed . | . . . . Reused . | . . . . Traps Extracted . | . . . . Installed . | . . . . Triggered . | . . . . Machines | -11 -10 -9 -9 ---------- Run | Yrd Mat Mat Sto Machines Disabled 2 | . . 2 . Max in Single Turn 1 | . . 1 . Machines Repaired . | . . . . Machines Dismantled . | . . . . Machines Sabotaged . | . . . . Overloaded Fab Kills . | . . . . Hacking | -11 -10 -9 -9 --------- Run | Yrd Mat Mat Sto Machines Accessed 12 | . 2 10 . Terminals 7 | . 1 6 . Fabricators . | . . . . Repair Stations 2 | . . 2 . Recycling Units 2 | . 1 1 . Scanalyzers 1 | . . 1 . Garrison Access . | . . . . Total Hacks 28 | . 5 23 . Successful 17 | . 3 14 . Failed 11 | . 2 9 . Catastrophic 5 | . 1 4 . Database Lockouts . | . . . . Manual 14 | . 2 12 . Terminals 14 | . 2 12 . Fabricators . | . . . . Repair Stations 6 | . . 6 . Recycling Units 4 | . 3 1 . Scanalyzers 4 | . . 4 . Garrison Access . | . . . . Terminal Hacks 4 | . . 4 . Branch Access Points 1 | . . 1 . Terminal Index 1 | . . 1 . Repair Station Index 1 | . . 1 . Recall Reinforcements 1 | . . 1 . Fabricator Hacks . | . . . . Repair Station Hacks 5 | . . 5 . Scan Component 3 | . . 3 . Repair 2 | . . 2 . Recycling Unit Hacks 4 | . 3 1 . Process 1 | . 1 . . Report Inventory 2 | . 1 1 . Retrieve Matter 1 | . 1 . . Scanalyzer 4 | . . 4 . Insert Component 2 | . . 2 . Analyze 2 | . . 2 . Garrison Access Hacks . | . . . . Unauthorized Hacks . | . . . . Terminals . | . . . . Fabricators . | . . . . Repair Stations . | . . . . Recycling Units . | . . . . Scanalyzers . | . . . . Garrison Access . | . . . . Data Cores Recovered . | . . . . Used . | . . . . Hacking Detections 9 | . 2 7 . Full Trace Events 3 | . 1 2 . Feedback Events . | . . . . Feedback Blocked . | . . . . Robot Schematics Acquired . | . . . . Robots Built . | . . . . Authchips . | . . . . Time . | . . . . Total Robot Build Rating . | . . . . Part Schematics Acquired 2 | . . 2 . Parts Built . | . . . . Authchips . | . . . . Time . | . . . . Total Part Build Rating . | . . . . Parts Repaired 2 | . . 2 . Time 58 | . . 58 . Parts Recycled . | . . . . Recycled Matter 30 | . 30 . . Retrieved Matter 30 | . 30 . . Retrieved Components . | . . . . Parts Scanalyzed 2 | . . 2 . Part Schematics Acquired 2 | . . 2 . Parts Damaged . | . . . . Bothacking | -11 -10 -9 -9 ------------ Run | Yrd Mat Mat Sto Used RIF Installer . | . . . . Robots Hacked . | . . . . Non-combat . | . . . . Combat . | . . . . Robot Hacks Applied . | . . . . Relay Couplers Released . | . . . . Fabnet Peak Effective % . | . . . . Robots Rewired . | . . . . Allies Hacked . | . . . . Hacks Repelled . | . . . . Allies | -11 -10 -9 -9 -------- Run | Yrd Mat Mat Sto Total Allies . | . . . . Largest Group . | . . . . Highest-Rated Group . | . . . . Highest-Rated Ally . | . . . . Total Orders . | . . . . Ally Attacks . | . . . . Total Damage . | . . . . Kills . | . . . . Allies Corrupted . | . . . . Allies Melted . | . . . . Intel | -11 -10 -9 -9 ------- Run | Yrd Mat Mat Sto Robot Analysis Total . | . . . . Derelict Logs Recovered . | . . . . Drone Launches . | . . . . Drone Recoveries . | . . . . Exploration | -11 -10 -9 -9 ------------- Run | Yrd Mat Mat Sto Turns Passed 2358 | 45 351 1705 257 Spaces Moved 1384 | 32 254 990 108 Core 4 | 4 . . . Treads . | . . . . Legs 1380 | 28 254 990 108 Wheels . | . . . . Hover . | . . . . Flight . | . . . . Fastest Speed 50 | 50 120 120 120 Average Speed 120 | 111 120 120 121 Slowest Speed 190 | 120 120 190 190 Overloaded Moves . | . . . . Propulsion Burnouts . | . . . . Robots Hopped . | . . . . Cave-ins Triggered . | . . . . Exploration Rate (%) 28 | 3 39 52 21 Regions Visited 3 Branch Regions 1 Pre-discovered Areas . | . . . . Known Exits Taken 1 | . . 1 . Unknown Exits Taken 2 | 1 1 . . Scrap Searched . | . . . . Spaces Dug . | . . . . Terrain Destroyed . | . . . . Melee . | . . . . Projectile . | . . . . AOE . | . . . . Terrain Rammed . | . . . . Walls Destroyed . | . . . . Machines Disabled . | . . . . Actions | -11 -10 -9 -9 --------- Run | Yrd Mat Mat Sto Total 1869 | 39 280 1382 168 Wait 262 | . . 258 4 Move 1381 | 31 253 989 108 Hop . | . . . . Pick Up 25 | 2 8 12 3 Fast Attach 14 | 5 1 7 1 Attach 9 | 1 3 1 4 Detach 2 | . 2 . . Swap 20 | . 2 15 3 Drop 32 | . 1 26 5 Fire 123 | . 10 73 40 Melee . | . . . . Ram . | . . . . Kick 1 | . . 1 . Crush . | . . . . Escape Stasis . | . . . . Rewire . | . . . . Trap . | . . . . Miscellaneous . | . . . . Route ------- -11/Scrapyard -10/Materials -9/Materials (discovered 5 exits: [*Mat] / *Min x2 / *Sto x2) -9/Storage History --------- Turn | Location | Event 28 | -11/Scrapyard | Discovered new exit (range 15) 46 | -11/Scrapyard | Entered Materials 222 | -10/Materials | Discovered new exit (range 11) 317 | -10/Materials | Build established: Mutant 397 | -10/Materials | Entered another Materials area 397 | -9/Materials | Evolved 2 slots: Propulsion x1, Utility x1 1194 | -9/Materials | Repaired Med. Armor Plating 1221 | -9/Materials | Repaired Aluminum Leg 1337 | -9/Materials | Build established: Scavenger-Mutant 1546 | -9/Materials | Discovered new exit (range 16) 1680 | -9/Materials | Discovered new exit (range 6) 1993 | -9/Materials | Discovered new exit (range 15) 2019 | -9/Materials | Identified exit to Mines 2019 | -9/Materials | Identified exit to Storage 2102 | -9/Materials | Entered Storage 2187 | -9/Storage | Garrison activated, responded to threat 2301 | -9/Storage | Core integrity fell below 50% 2350 | -9/Storage | Core integrity fell below 20% 2359 | -9/Storage | Destroyed by G-34 Mercenary with Small Laser Last Messages --------------- Acquired Lgt. Armor Plating. K-01 Serf collects debris. K-01 Serf destroyed. K-01 Serf collects debris. Lgt. Armor Plating severed. Heat Sink destroyed. K-01 Serf cleans the Compression Vault. Lgt. Deuterium Engine destroyed. Aluminum Leg destroyed. K-01 Serf cleans the Compression Vault. Hvy. Assault Rifle destroyed. K-01 Serf cleans the Compression Vault. Lgt. Deuterium Engine destroyed. Aluminum Leg severed. G-34 Mercenary destroyed. U-05 Engineer builds a Door. Melee Analysis Suite melted. L-31 Rogue destroyed. M-13 Machinist repairs Imp. Ion Engine. G-34 Mercenary destroyed. Map ----- +----------------------------------------------------+ | ?????????????????????????????# # #?????? | | ?????????????????????????????# # ####### | | ?????????????????????????????# # # #!!! | | ?????????????????????????????########### # " ! | | ???????????????????????????????????????# # ! | | ???????????????????????????????????????# + " ! | | ???????????????????????????????# ]?????# ##T# ! | | ???????????????????????????????# "??# #### !! | | ???????????????????????????????#] # #??#### | | ????????????????????+? ?????????????" + #?????? | | ????????????????????# ????????????# # #?????? | | ????????????????????# """????????#??# #?????? | | ????????????????????# ???????????# #?????? | | ????????????????????# """???????????# #?????? | | ????????????????????# """???????????# #?????? | | ?????????????????????? """???????????# +?????? | | ???????????????????????? ??#######??# # ????? | | ????????????##############+####%= #??#[% # ???? | | ??????????? !%[ ==! #??#=! #? ??? | | ??????????? =%!=% !%!####===##?##?? | | ??????????? != /%!!!= %%= #????? | | ??????????????????########/#### !%###!=%! #????? | | ??????????????????????# ! g #####*#?# [ #????? | | ?????????????????????##=g=/ #???# #?#! #????? | | ?????????????????????#*%*%l #???# #?#= #????? | | ?????????????????????##==@ #???# #?#######????? | | ??????????????????????# = """ #???# ????????????? | | ??????????????????????# """ #???# ????????????? | | ??????????????????????# """ ""??# ????????????? | | ??????????????????????# """ G"?# ????????????? | | ??????????????????????# """ "" ?? ????????????? | | ??????????????????????# ?###?? ????????????? | | ??????????????????????# ??????? ????????????? | | ??????????????????????######??????? ????????????? | | ??????????????????????????????????? ????????????? | | ??????????????????????????????????? ????????????? | | ??????????????????????????????????? #????????????? | | ?????????????????????????????????????????????????? | | ?????????????????????????????????????????????????? | | ?????????????????????????????????????????????????? | | ?????????????????????????????????????????????????? | | ?????????????????????????????????????????????????? | | ?????????????????????????????????????????????????? | | ?????????????????????????????????????????????????? | | ?????????????????????????????????????????????????? | | ?????????????????????????????????????????????????? | | ?????????????????????????????????????????????????? | | ?????????????????????????????????????????????????? | | ?????????????????????????????????????????????????? | | ?????????????????????????????????????????????????? | +----------------------------------------------------+ Best States ------------- Heat Dissipation 38 Energy Generation 14 Energy Capacity 265 Matter Stores 300 Matter Capacity 300 Sight Range 16 Terrain Scan Density 10 Armor Coverage 225 Resistance: KI 20 Resistance: TH 20 Resistance: EX 20 Resistance: EM 20 Resistance: I 20 Resistance: S 20 Resistance: P 20 Core Shielding 20 Evasion (%) 55 Offensive Hacking 10 Item Schematics ----------------- Aluminum Leg | -9/Materials | Scanalyzed Lgt. Ion Engine | -9/Materials | Scanalyzed Robot Schematics ------------------ None Fabricated ------------ Nothing Alien Tech Used ----------------- None Achievements -------------- None Challenges ------------ None Game ------ Seed ForceDefenseBeamcaster Manual? 0 Play Time 00:22:03 Cumulative 25.9 hours Start 2024.03.19 @ 22:43:14 End 2024.03.19 @ 23:28:05 Sessions 1 Manual Loads 0 Difficulty Adventurer Special Mode None Game No. 26 Rogue 5 Adventurer 21 Explorer 0 Win Type - Total 0 Types 0/0/0/0/0/0/0/0/0 Lore% 21 Gallery% 36 Achievement% 25 Wizard Run 0 Options --------- Layout 1 ASCII 0 Keyboard 1 Movement Vi Keybinds 0 Fullscreen 1 Font 24/Terminus Map View 50x40 Zoom Use 0% Tactical HUD 0 Map Filters NONE Filters NONE Steam 1 RUN: 5a161a78-aa36-4854-98bf-7a52126433a9